Workbook

Sheet Overwinter
S1: HIDE | T1: HIDE | U1: HIDE
A2: . . . . . . . . . . . . . . . . . . . . . . . . . . . . . . . . . . . . . . . . . . . . . . . . . . .
A3: Beef Cow Overwinter Cost Calculator | J3: Printed: | K3: =TODAY() -> 2024-10-02
C4: *** Enter changes to BLUE values only ***
A5: Input Data:
B6: Number of cows to be wintered | C6: 300
B7: Average weight of cows | C7: 1350
B8: Number of bulls to be wintered | C8: 0
B9: Days winter feeding (pre calving) | C9: 135 | E9: Operating Interest | G9: 0.075
B10: Days winter feeding (post calving) | C10: 60 | E10: Investment Rate | G10: 0.0475
B11: Total Feeding Days | C11: =SUM(C9:C10) -> 195
B12: Number of days in extended grazing | C12: 0
A14: For more information on production costs,
A16: A. Operating Costs:
A17: 1. Feed Costs Per Cow - Pre Calving
B18: Select Base Ration - | C18: #3 - Corn Silage, Straw & Supplement | I18: =C9 -> 135 | J18: Days
B19: Feed Type | C19: $/unit | D19: lbs/ unit | E19: $/lb | F19: lbs/ cow/ day | G19: Total Feed Required | J19: Total Cost | L19: $/cow/day | S19: 1400 | T19: =$C$7 -> 1350 | U19: *reset copy*
B20: Alfalfa Hay | C20: 155 | D20: 2000 | E20: =SUM(C20/D20) -> 0.0775 | F20: =T20 -> 0 | G20: =SUM($C$9*F20*$C$6)/D20 -> 0 | J20: =G20*C20 -> 0 | L20: =SUM(J20/$C$6)/$C$9 -> 0 | S20: =HLOOKUP($C$18,'Winter Feed Rations (HIDE)'!$E$8:$L$25,4,FALSE) -> 0 | T20: =SUM(($C$7/1400)*S20) -> 0 | U20: =AI20 -> 0
B21: Alfalfa Grass Hay | C21: 115 | D21: 2000 | E21: =SUM(C21/D21) -> 0.0575 | F21: =T21 -> 0 | G21: 0 | J21: 0 | L21: =SUM(J21/$C$6)/$C$9 -> 0 | S21: =HLOOKUP($C$18,'Winter Feed Rations (HIDE)'!$E$8:$L$25,5,FALSE) -> 0 | T21: 0 | U21: =AI21 -> 0
B22: Grass Hay | C22: 95 | D22: 2000 | E22: =SUM(C22/D22) -> 0.0475 | F22: 0 | G22: 0 | J22: 0 | L22: 0 | S22: =HLOOKUP($C$18,'Winter Feed Rations (HIDE)'!$E$8:$L$25,6,FALSE) -> 0 | T22: 0 | U22: 0
B23: Barley Straw | C23: 70 | D23: 2000 | E23: 0.035 | F23: 18.32142857 | G23: 371.0089286 | J23: 25970.625 | L23: 0.64125 | S23: =HLOOKUP($C$18,'Winter Feed Rations (HIDE)'!$E$8:$L$25,7,FALSE) -> 19 | T23: 18.32142857 | U23: 0
B24: Barley Greenfeed | C24: 115 | D24: 2000 | E24: 0.0575 | F24: 0 | G24: 0 | J24: 0 | L24: 0 | S24: =HLOOKUP($C$18,'Winter Feed Rations (HIDE)'!$E$8:$L$25,8,FALSE) -> 0 | T24: 0 | U24: 0
B25: Corn Silage | C25: 40 | D25: 2000 | E25: 0.02 | F25: 45.32142857 | G25: 917.7589286 | J25: 36710.35714 | L25: 0.9064285714 | S25: =HLOOKUP($C$18,'Winter Feed Rations (HIDE)'!$E$8:$L$25,9,FALSE) -> 47 | T25: 45.32142857 | U25: 0
B26: Barley Silage | C26: 50 | D26: 2000 | E26: 0.025 | F26: 0 | G26: 0 | J26: 0 | L26: 0 | S26: =HLOOKUP($C$18,'Winter Feed Rations (HIDE)'!$E$8:$L$25,10,FALSE) -> 0 | T26: 0 | U26: 0
B27: Barley Grain | C27: 4.5 | D27: 48 | E27: 0.09375 | F27: 0 | G27: 0 | J27: 0 | L27: 0 | S27: =HLOOKUP($C$18,'Winter Feed Rations (HIDE)'!$E$8:$L$25,11,FALSE) -> 0 | T27: 0 | U27: 0
B28: 32% Feedlot Suppl. | C28: 550 | D28: 2205 | E28: 0.2494331066 | F28: 0.4821428571 | G28: 8.855685131 | J28: 4870.626822 | L28: 0.1202623907 | S28: =HLOOKUP($C$18,'Winter Feed Rations (HIDE)'!$E$8:$L$25,12,FALSE) -> 0.5 | T28: 0.4821428571 | U28: 0
B29: 32% Liquid Suppl. | C29: 475 | D29: 2205 | E29: 0.2154195011 | F29: 0 | G29: 0 | J29: 0 | L29: 0 | S29: =HLOOKUP($C$18,'Winter Feed Rations (HIDE)'!$E$8:$L$25,13,FALSE) -> 0 | T29: 0 | U29: 0
B30: 20% Grain Pellets | C30: 300 | D30: 2205 | E30: 0.1360544218 | F30: 0 | G30: 0 | J30: 0 | L30: 0 | S30: =HLOOKUP($C$18,'Winter Feed Rations (HIDE)'!$E$8:$L$25,14,FALSE) -> 0 | T30: 0 | U30: 0
B31: (enter other feed here) | C31: 0 | D31: 2205 | E31: =SUM(C31/D31) -> 0 | F31: 0 | G31: 0 | J31: 0 | L31: =SUM(J31/$C$6)/$C$9 -> 0 | U31: 0
B32: (enter other feed here) | C32: 0 | D32: 2205 | E32: =SUM(C32/D32) -> 0 | F32: 0 | G32: 0 | J32: 0 | L32: =SUM(J32/$C$6)/$C$9 -> 0 | U32: 0
B33: 1:1 Mineral | C33: 50 | D33: 55 | E33: 0.9090909091 | F33: 0 | G33: 0 | J33: 0 | L33: 0 | S33: =HLOOKUP($C$18,'Winter Feed Rations (HIDE)'!$E$8:$L$25,15,FALSE) -> 0 | T33: =SUM(($C$7/1400)*S33) -> 0 | U33: 0
B34: 2:1 Mineral | C34: 50 | D34: 55 | E34: 0.9090909091 | F34: 0.05785714286 | G34: 42.6038961 | J34: 2130.194805 | L34: 0.0525974026 | S34: =HLOOKUP($C$18,'Winter Feed Rations (HIDE)'!$E$8:$L$25,16,FALSE) -> 0.06 | T34: =SUM(($C$7/1400)*S34) -> 0.05785714286 | U34: 0
B35: Limestone | C35: 20 | D35: 55 | E35: 0.3636363636 | F35: 0 | G35: 0 | J35: 0 | L35: 0 | S35: =HLOOKUP($C$18,'Winter Feed Rations (HIDE)'!$E$8:$L$25,17,FALSE) -> 0 | T35: =SUM(($C$7/1400)*S35) -> 0 | U35: 0
B36: Blue Salt | C36: 10 | D36: 55 | E36: 0.1818181818 | F36: 0.0675 | G36: 49.70454545 | J36: 497.0454545 | L36: 0.01227272727 | S36: =HLOOKUP($C$18,'Winter Feed Rations (HIDE)'!$E$8:$L$25,18,FALSE) -> 0.07 | T36: =SUM(($C$7/1400)*S36) -> 0.0675 | U36: 0
F37: =SUM(F20:F36) -> 64.25035714 | J37: =SUM(J20:J36) -> 70178.84922 | L37: 1.732811092
A38: 2. Feed Costs Per Cow - Post Calving
B39: Select Base Ration - | C39: #3 - Corn Silage, Straw, Grain & Supplement | I39: =C10 -> 60 | J39: Days
B40: Feed Type | C40: $/unit | D40: lbs/ unit | E40: $/lb | F40: lbs/ cow/ day | G40: Total Feed Required | J40: Total Cost | L40: $/cow/day | S40: 1400 | T40: =$C$7 -> 1350 | U40: *reset copy*
B41: Alfalfa Hay | C41: =C20 -> 155 | D41: =D20 -> 2000 | E41: =SUM(C41/D41) -> 0.0775 | F41: =T41 -> 0 | G41: =SUM($C$10*F41*$C$6)/D41 -> 0 | J41: =G41*C41 -> 0 | L41: =SUM(J41/$C$6)/$C$10 -> 0 | S41: =HLOOKUP($C$39,'Winter Feed Rations (HIDE)'!$E$29:$L$45,3,FALSE) -> 0 | T41: =SUM(($C$7/1400)*S41) -> 0 | U41: =AI41 -> 0
B42: Alfalfa Grass Hay | C42: =C21 -> 115 | D42: 2000 | E42: =SUM(C42/D42) -> 0.0575 | F42: =T42 -> 0 | G42: =SUM($C$10*F42*$C$6)/D42 -> 0 | J42: 0 | L42: =SUM(J42/$C$6)/$C$10 -> 0 | S42: =HLOOKUP($C$39,'Winter Feed Rations (HIDE)'!$E$29:$L$45,4,FALSE) -> 0 | T42: 0 | U42: =AI42 -> 0
B43: Grass Hay | C43: =C22 -> 95 | D43: 2000 | E43: =SUM(C43/D43) -> 0.0475 | F43: 0 | G43: 0 | J43: 0 | L43: 0 | S43: =HLOOKUP($C$39,'Winter Feed Rations (HIDE)'!$E$29:$L$45,5,FALSE) -> 0 | T43: 0 | U43: 0
B44: Barley Straw | C44: =C23 -> 70 | D44: 2000 | E44: 0.035 | F44: 11.57142857 | G44: 104.1428571 | J44: 7290 | L44: 0.405 | S44: =HLOOKUP($C$39,'Winter Feed Rations (HIDE)'!$E$29:$L$45,6,FALSE) -> 12 | T44: 11.57142857 | U44: 0
B45: Barley Greenfeed | C45: =C24 -> 115 | D45: 2000 | E45: 0.0575 | F45: 0 | G45: 0 | J45: 0 | L45: 0 | S45: =HLOOKUP($C$39,'Winter Feed Rations (HIDE)'!$E$29:$L$45,7,FALSE) -> 0 | T45: 0 | U45: 0
B46: Corn Silage | C46: =C25 -> 40 | D46: 2000 | E46: 0.02 | F46: 46.28571429 | G46: 416.5714286 | J46: 16662.85714 | L46: 0.9257142857 | S46: =HLOOKUP($C$39,'Winter Feed Rations (HIDE)'!$E$29:$L$45,8,FALSE) -> 48 | T46: 46.28571429 | U46: 0
B47: Barley Silage | C47: =C26 -> 50 | D47: 2000 | E47: 0.025 | F47: 0 | G47: 0 | J47: 0 | L47: 0 | S47: =HLOOKUP($C$39,'Winter Feed Rations (HIDE)'!$E$29:$L$45,9,FALSE) -> 0 | T47: 0 | U47: 0
B48: Barley Grain | C48: =C27 -> 4.5 | D48: 48 | E48: 0.09375 | F48: 6.75 | G48: 2531.25 | J48: 11390.625 | L48: 0.6328125 | S48: =HLOOKUP($C$39,'Winter Feed Rations (HIDE)'!$E$29:$L$45,10,FALSE) -> 7 | T48: 6.75 | U48: 0
B49: 32% Feedlot Suppl. | C49: =C28 -> 550 | D49: 2205 | E49: 0.2494331066 | F49: 1.928571429 | G49: 15.74344023 | J49: 8658.892128 | L49: 0.4810495627 | S49: =HLOOKUP($C$39,'Winter Feed Rations (HIDE)'!$E$29:$L$45,11,FALSE) -> 2 | T49: 1.928571429 | U49: 0
B50: 32% Liquid Suppl. | C50: =C29 -> 475 | D50: 2205 | E50: 0.2154195011 | F50: 0 | G50: 0 | J50: 0 | L50: 0 | S50: =HLOOKUP($C$39,'Winter Feed Rations (HIDE)'!$E$29:$L$45,12,FALSE) -> 0 | T50: 0 | U50: 0
B51: 20% Grain Pellets | C51: =C30 -> 300 | D51: 2205 | E51: 0.1360544218 | F51: 0 | G51: 0 | J51: 0 | L51: 0 | S51: =HLOOKUP($C$39,'Winter Feed Rations (HIDE)'!$E$29:$L$45,13,FALSE) -> 0 | T51: 0 | U51: 0
B52: (enter other feed here) | C52: 0 | D52: 2205 | E52: 0 | F52: 0 | G52: =SUM($C$9*F52*$C$6)/D52 -> 0 | J52: 0 | L52: =SUM(J52/$C$6)/$C$9 -> 0 | U52: 0
B53: (enter other feed here) | C53: 0 | D53: 2205 | E53: 0 | F53: 0 | G53: =SUM($C$9*F53*$C$6)/D53 -> 0 | J53: 0 | L53: 0 | U53: 0
B54: 1:1 Mineral | C54: =C33 -> 50 | D54: 55 | E54: 0.9090909091 | F54: 0 | G54: 0 | J54: 0 | L54: 0 | S54: =HLOOKUP($C$39,'Winter Feed Rations (HIDE)'!$E$29:$L$45,14,FALSE) -> 0 | T54: =SUM(($C$7/1400)*S54) -> 0 | U54: 0
B55: 2:1 Mineral | C55: =C34 -> 50 | D55: 55 | E55: 0.9090909091 | F55: 0.1735714286 | G55: 56.80519481 | J55: 2840.25974 | L55: 0.1577922078 | S55: =HLOOKUP($C$39,'Winter Feed Rations (HIDE)'!$E$29:$L$45,15,FALSE) -> 0.18 | T55: =SUM(($C$7/1400)*S55) -> 0.1735714286 | U55: 0
B56: Limestone | C56: =C35 -> 20 | D56: 55 | E56: 0.3636363636 | F56: 0.09642857143 | G56: 31.55844156 | J56: 631.1688312 | L56: 0.03506493506 | S56: =HLOOKUP($C$39,'Winter Feed Rations (HIDE)'!$E$29:$L$45,16,FALSE) -> 0.1 | T56: =SUM(($C$7/1400)*S56) -> 0.09642857143 | U56: 0
B57: Blue Salt | C57: =C36 -> 10 | D57: 55 | E57: 0.1818181818 | F57: 0.09642857143 | G57: 31.55844156 | J57: 315.5844156 | L57: 0.01753246753 | S57: =HLOOKUP($C$39,'Winter Feed Rations (HIDE)'!$E$29:$L$45,17,FALSE) -> 0.1 | T57: =SUM(($C$7/1400)*S57) -> 0.09642857143 | U57: 0
F58: =SUM(F41:F57) -> 66.90214286 | J58: =SUM(J41:J57) -> 47789.38726 | L58: =SUM(J58/$C$6)/$C$10 -> 2.654965959
B60: Total Feed per Cow | J60: =SUM(J58+J37) -> 117968.2365 | L60: =SUM((J60/$C$6)/($C$9+$C$10)) -> 2.016551051
B61: Bedding (straw) | C61: 70 | D61: /ton* | G61: =C6 -> 300 | H61: tons | J61: =ROUND(G61*C61,0) -> 21000 | L61: =SUM((J61/$C$6)/($C$9+$C$10)) -> 0.358974359
B62: ="Total Feed Cost & Bedding (for Cows) - based on "&C9+C10&" days" -> Total Feed Cost & Bedding (for Cows) - based on 195 days | J62: =SUM(J60:J61) -> 138968.2365 | L62: =SUM((J62/$C$6)/($C$9+$C$10)) -> 2.37552541
A64: 3. Feed Costs For Breeding Bulls:
B65: Item | C65: $/unit | E65: lbs/hd/day | F65: Days | G65: Feed Required | J65: Total Cost | L65: $/cow/day
B66: Ground Barley | C66: 4.5 | D66: /bus | E66: 7 | F66: 120 | G66: =(E66/48)*F66*C8 -> 0 | H66: bus | J66: =ROUND(G66*C66,0) -> 0 | L66: =SUM((J66/$C$6)/($C$9+$C$10)) -> 0
B67: Good quality hay | C67: 115 | D67: /ton* | E67: 41 | F67: =$C$9+$C$10 -> 195 | G67: =ROUND((E67/2000)*C11*C8,0) -> 0 | H67: tons* | J67: =ROUND(G67*C67,0) -> 0 | L67: 0
B68: Total Feed per Bull | E68: =SUM(E66:E67) -> 48 | J68: =SUM(J66:J67) -> 0 | L68: 0
B69: Bedding (straw) | C69: 70 | D69: /ton* | G69: =C8 -> 0 | H69: tons* | J69: =ROUND(G69*C69,0) -> 0 | L69: 0
B70: ="Total Feed & Bedding (for Breeding Bulls) per cow per day based on "&C9+C10&" days" -> Total Feed & Bedding (for Breeding Bulls) per cow per day based on 195 days | J70: =SUM(J68:J69) -> 0 | L70: 0
B72: Total All Feed & Bedding for Cows and Bulls | J72: =J62+J70 -> 138968.2365 | L72: 2.37552541
A74: 4. Extended Grazing Costs: | C74: $/cow/yr | F74: Days | J74: Total Cost | L74: $/cow/day
B75: Extended grazing | C75: 41.65 | F75: =C12 -> 0 | J75: =IF(F75<1,0,ROUND(C75*C6,0)) -> 0 | L75: =IF(F75<1,0,SUM(C75/F75)) -> 0
A77: 5. Other Operating Costs: | C77: $/cow/yr | J77: Total Cost | L77: $/cow/day
B78: Veterinary Medicine & Supplies: | C78: 0 | J78: =ROUND(C78*C6,0) -> 0 | L78: =SUM(J78/$C$6)/($C$9+$C$10+$C$12) -> 0
B79: Specialized Vet Services | J79: 0 | L79: 0
B80: Utilities | J80: 2906.6322 | L80: 0.04968602051
B81: Equipment fuel & repairs | J81: 7994.63 | L81: 0.1366603419
B82: Building and fences repair | J82: 2237.62 | L82: 0.03824991453
B83: Building and equipment insurance | J83: 1356 | L83: 0.02317948718
B84: Manure Removal | J84: 3251.890687 | L84: 0.055587875
B85: Miscellaneous | J85: 1000 | L85: 0.01709401709
B86: Total Other Operating Costs | J86: =ROUND(SUM(J78:J85),0) -> 18747 | L86: 0.3204615385
A88: Subtotal Operating Costs | J88: =ROUND(J62+J70+J86+J75,0) -> 157715 | L88: =SUM(J88/$C$6)/($C$9+$C$10+$C$12) -> 2.695982906
B89: Operating Interest | J89: =ROUND((J88/2)*G9,0) -> 5914 | L89: =SUM(J89/$C$6)/($C$9+$C$10+$C$12) -> 0.1010940171
A90: Total Operating Costs for Winter Period | J90: =ROUND(J88+J89,0) -> 163629 | L90: =SUM(J90/$C$6)/($C$9+$C$10+$C$12) -> 2.797076923
A92: B. Fixed Costs:
C93: Facilities | E93: Equipment
B94: Original Value | C94: 101710 | E94: 237500
B95: Salvage Value | C95: 20342 | E95: 47500
B96: Useful Life | C96: 20 | D96: yrs | E96: 10 | F96: yrs
B97: Investment Rate | C97: =G10 -> 0.0475 | E97: =G10 -> 0.0475 | J97: Total Cost | L97: $/cow/day
A98: Total Fixed Costs | C98: =IF(C96=0,0,(((C94-C95)/C96)+((C94+C95)/2)*C97)/C6) -> 23.22378333 | E98: =IF(E96=0,0,(((E94-E95)/E96)+((E94+E95)/2)*E97)/C6) -> 85.89583333 | J98: =ROUND((C98+E98)*C6,0) -> 32736 | L98: =SUM(J98/$C$6)/($C$9+$C$10+$C$12) -> 0.5595897436
A100: C. Labour Costs:
J101: Total Cost | L101: $/cow/day
B102: Feeding, bedding | C102: 5 | D102: hr/cow | E102: 27 | F102: /hr | G102: ="("&TEXT(((C102*C6)/((C9+C12)/7)),"#.#")&" hrs per week)" -> (77.8 hrs per week) | J102: =SUM(C102*E102*C6) -> 40500 | L102: =SUM(J102/$C$6)/($C$9+$C$10+$C$12) -> 0.6923076923
B103: Optional Calving Management Fee | E103: 0 | F103: /cow | J103: =SUM(E103*C6) -> 0 | L103: =SUM(J103/$C$6)/($C$9+$C$10+$C$12) -> 0
B104: Calf Crop Bonus | C104: 1 | D104: /rate | E104: 0 | F104: /calf | J104: =SUM(C104*E104*C6) -> 0 | L104: =SUM(J104/$C$6)/($C$9+$C$10+$C$12) -> 0
A105: Total Labour Costs for Winter Period | J105: =ROUND(J103+J104+J102,0) -> 40500 | L105: =SUM(J105/$C$6)/($C$9+$C$10+$C$12) -> 0.6923076923
J107: Total Cost | L107: $/cow/day
A108: Total Cost of Production (Winter Feed, Extended Grazing, Operating, Fixed & Labour) | J108: =SUM(J105+J98+J90) -> 236865 | L108: =SUM(J108/$C$6)/($C$9+$C$10+$C$12) -> 4.048974359
A110: Cost Summary
E111: Cost/cow/day
B112: ="Extended grazing (based on "&C12&" days)" -> Extended grazing (based on 0 days) | E112: =L75 -> 0
B113: ="Winter Feed (based on "&C9+C10&" days)" -> Winter Feed (based on 195 days) | E113: =ROUND((J60+J68)/(C9+C10)/C6,3) -> 2.017 | G113: ="($"&ROUND(SUM((J60+J68)/$C$6),0)&" per cow)" -> ($393 per cow)
B114: ="Yardage (not including labour, based on "&C9+C10+C12&" days)" -> Yardage (not including labour, based on 195 days) | E114: =ROUND((((J61+J69+J86+J89+J98)/C6)/(C9+C10+C12)),3) -> 1.34
B115: ="Labour (based on "&C9+C10+C12&" days)" -> Labour (based on 195 days) | E115: =ROUND((J105)/(C9+C10+C12)/C6,3) -> 0.692
B116: ="Total Overwinter Costs (based on "&C9+C10+C12&" days)" -> Total Overwinter Costs (based on 195 days) | E116: =SUM(((J75+(E113*(C9+C10)*C6)+((E114*(C9+C10+C12)*C6)+J102))/C6)/(C9+C10+C12)) -> 4.049307692
A118: Note: This budget is only a guide and is not intended to be an in-depth study of the cost of production of this industry. Interpretation and utilization of this information is the responsibility of the user.
L121: September, 2024

Sheet Winter Feed Rations (HIDE) (hidden)
A1: Winter Feed Costs & Requirements Worksheet
A5: Enter your days on feed for each selected ration number in the "blue" numbers in the "gray" shaded area
A7: Pre Calving - Cows (1400 lb cow Ration)
B8: Ration Number | E8: #1 - Alfalfa Grass Hay | F8: #2 - Barley Silage, Straw & Supplement | G8: #3 - Corn Silage, Straw & Supplement | H8: #4 - Straw, Grain & Supplement | I8: #5 - Hay & Greenfeed | J8: #6 - Straw, Grain & Supplement | K8: #7 - Corn Silage, Hay & Straw | L8: #8 - Straw & Pellets
E9: Hay | F9: Barley Silage | G9: Corn Silage | H9: Straw & Grain | I9: Greenfeed & Hay | J9: Straw, Grain & Suppl. | K9: Corn Silage & Hay | L9: Straw & Pellets
A10: Feed Type | B10: $/unit | C10: lbs/Unit | D10: $/lb
A11: Alfalfa Hay | B11: 200 | C11: 2000 | D11: =SUM(B11/C11) -> 0.1 | E11: 0 | F11: 0 | G11: 0 | H11: 0 | I11: 0 | J11: 0 | K11: 0 | L11: 0
A12: Alfalfa Grass Hay | B12: 170 | C12: 2000 | D12: =SUM(B12/C12) -> 0.085 | E12: 35 | F12: 0 | G12: 0 | H12: 0 | I12: 16 | J12: 0 | K12: 10 | L12: 0
A13: Grass Hay | B13: 160 | C13: 2000 | D13: =SUM(B13/C13) -> 0.08 | E13: 0 | F13: 0 | G13: 0 | H13: 0 | I13: 0 | J13: 0 | K13: 0 | L13: 0
A14: Barley Straw | B14: 60 | C14: 2000 | D14: 0.03 | E14: 0 | F14: 17 | G14: 19 | H14: 23 | I14: 0 | J14: 23 | K14: 15 | L14: 23
A15: Barley Greenfeed | B15: 170 | C15: 2000 | D15: 0.085 | E15: 0 | F15: 0 | G15: 0 | H15: 0 | I15: 19 | J15: 0 | K15: 0 | L15: 0
A16: Corn Silage | B16: 50 | C16: 2000 | D16: 0.025 | E16: 0 | F16: 0 | G16: 47 | H16: 0 | I16: 0 | J16: 0 | K16: 32 | L16: 0
A17: Barley Silage | B17: 50 | C17: 2000 | D17: 0.025 | E17: 0 | F17: 48 | G17: 0 | H17: 0 | I17: 0 | J17: 0 | K17: 0 | L17: 0
A18: Barley Grain | B18: 7.5 | C18: 48 | D18: 0.15625 | E18: 0 | F18: 0 | G18: 0 | H18: 11 | I18: 0 | J18: 10 | K18: 0 | L18: 0
A19: 32% Feedlot Suppl. | B19: 475 | C19: 2205 | D19: 0.2154195011 | E19: 0 | F19: 0.5 | G19: 0.5 | H19: 1 | I19: 0 | J19: 0 | K19: 0 | L19: 0
A20: 32% Liquid Suppl. | B20: 405 | C20: 2205 | D20: 0.1836734694 | E20: 0 | F20: 0 | G20: 0 | H20: 0 | I20: 0 | J20: 2.9 | K20: 0 | L20: 0
A21: 20% Grain Pellets | B21: 320 | C21: 2205 | D21: 0.1451247166 | E21: 0 | F21: 0 | G21: 0 | H21: 0 | I21: 0 | J21: 0 | K21: 0 | L21: 14
A22: 1:1 Mineral | B22: 40 | C22: 55 | D22: 0.7272727273 | E22: 0.12 | F22: 0 | G22: 0 | H22: 0 | I22: 0 | J22: 0 | K22: 0 | L22: 0
A23: 2:1 Mineral | B23: 40 | C23: 55 | D23: 0.7272727273 | E23: 0 | F23: 0.06 | G23: 0.06 | H23: 0.06 | I23: 0.12 | J23: 0.2 | K23: 0.2 | L23: 0.06
A24: Limestone | B24: 5.5 | C24: 55 | D24: 0.1 | E24: 0 | F24: 0 | G24: 0 | H24: 0 | I24: 0 | J24: 0.2 | K24: 0 | L24: 0.2
A25: Blue Salt | B25: 7.75 | C25: 55 | D25: 0.1409090909 | E25: 0.07 | F25: 0.07 | G25: 0.07 | H25: 0.07 | I25: 0.07 | J25: 0.07 | K25: 0.07 | L25: 0.07
B26: $/head/day | E26: =SUM((E11*$D$11)+(E12*$D$12)+(E13*$D$13)+(E14*$D$14)+(E15*$D$15)+(E16*$D$16)+(E17*$D$17)+(E18*$D$18)+(E19*$D$19)+(E20*$D$20)+(E21*$D$21)+(E22*$D$22)+(E23*$D$23)+(E24*$D$24+(E25*$D$25))) -> 3.072136364 | F26: =SUM((F11*$D$11)+(F12*$D$12)+(F13*$D$13)+(F14*$D$14)+(F15*$D$15)+(F16*$D$16)+(F17*$D$17)+(F18*$D$18)+(F19*$D$19)+(F20*$D$20)+(F21*$D$21)+(F22*$D$22)+(F23*$D$23)+(F24*$D$24+(F25*$D$25))) -> 1.871209751 | G26: 1.906209751 | H26: 2.677669501 | I26: 3.072136364 | J26: 2.960471243 | K26: 2.255318182 | L26: 2.795246032
A28: Post Calving - Cows
B29: Ration Number | E29: #1 - Alfalfa Grass Hay & Grain | F29: #2 - Barley Silage, Straw & Grain | G29: #3 - Corn Silage, Straw, Grain & Supplement | H29: #4 - Straw, Grain & Supplement | I29: #5 - Hay, Greenfeed & Grain | J29: #6 - Straw, Grain & Supplement | K29: #7 - Corn Silage, Hay & Straw | L29: #8 - Hay, Pellets & Straw
A30: Feed Type | B30: $/unit | C30: lbs/Unit | D30: $/lb
A31: =A11 -> Alfalfa Hay | B31: 200 | C31: 2000 | D31: =SUM(B31/C31) -> 0.1 | E31: 0 | F31: 0 | G31: 0 | H31: 0 | I31: 0 | J31: 0 | K31: 0 | L31: 0
A32: Alfalfa Grass Hay | B32: 170 | C32: 2000 | D32: =SUM(B32/C32) -> 0.085 | E32: 44 | F32: 0 | G32: 0 | H32: 0 | I32: 20 | J32: 0 | K32: 20 | L32: 15
A33: Grass Hay | B33: 160 | C33: 2000 | D33: =SUM(B33/C33) -> 0.08 | E33: 0 | F33: 0 | G33: 0 | H33: 0 | I33: 0 | J33: 0 | K33: 0 | L33: 0
A34: Barley Straw | B34: 60 | C34: 2000 | D34: 0.03 | E34: 0 | F34: 12 | G34: 12 | H34: 24 | I34: 0 | J34: 23 | K34: 8 | L34: 11
A35: Barley Greenfeed | B35: 170 | C35: 2000 | D35: 0.085 | E35: 0 | F35: 0 | G35: 0 | H35: 0 | I35: 16 | J35: 0 | K35: 0 | L35: 0
A36: Corn Silage | B36: 50 | C36: 2000 | D36: 0.025 | E36: 0 | F36: 0 | G36: 48 | H36: 0 | I36: 0 | J36: 0 | K36: 40 | L36: 0
A37: Barley Silage | B37: 50 | C37: 2000 | D37: 0.025 | E37: 0 | F37: 45 | G37: 0 | H37: 0 | I37: 0 | J37: 0 | K37: 0 | L37: 0
A38: Barley Grain | B38: 7.5 | C38: 48 | D38: 0.15625 | E38: 5 | F38: 12 | G38: 7 | H38: 15 | I38: 5 | J38: 15 | K38: 0 | L38: 0
A39: 32% Feedlot Suppl. | B39: 475 | C39: 2205 | D39: 0.2154195011 | E39: 0 | F39: 0 | G39: 2 | H39: 2.5 | I39: 0 | J39: 0 | K39: 0 | L39: 0
A40: 32% Liquid Suppl. | B40: 405 | C40: 2205 | D40: 0.1836734694 | E40: 0 | F40: 0 | G40: 0 | H40: 0 | I40: 0 | J40: 3.5 | K40: 0 | L40: 0
A41: 20% Grain Pellets | B41: 320 | C41: 2205 | D41: 0.1451247166 | E41: 0 | F41: 0 | G41: 0 | H41: 0 | I41: 0 | J41: 0 | K41: 0 | L41: 15
A42: 1:1 Mineral | B42: 40 | C42: 55 | D42: 0.7272727273 | E42: 0.18 | F42: 0 | G42: 0 | H42: 0 | I42: 0 | J42: 0 | K42: 0 | L42: 0
A43: 2:1 Mineral | B43: 40 | C43: 55 | D43: 0.7272727273 | E43: 0 | F43: 0.18 | G43: 0.18 | H43: 0.18 | I43: 0.18 | J43: 0.18 | K43: 0.18 | L43: 0.18
A44: Limestone | B44: 5.5 | C44: 55 | D44: 0.1 | E44: 0 | F44: 0.1 | G44: 0.1 | H44: 0.1 | I44: 0 | J44: 0.3 | K44: 0 | L44: 0.1
A45: Blue Salt | B45: 7.75 | C45: 55 | D45: 0.1409090909 | E45: 0.1 | F45: 0.1 | G45: 0.1 | H45: 0.1 | I45: 0.1 | J45: 0.1 | K45: 0.1 | L45: 0.1
B46: $/head/day | E46: =SUM((E31*$D$31)+(E32*$D$32)+(E33*$D$33)+(E34*$D$34)+(E35*$D$35)+(E36*$D$36)+(E37*$D$37)+(E38*$D$38)+(E39*$D$39)+(E40*$D$40)+(E41*$D$41)+(E42*$D$42)+(E43*$D$43)+(E44*$D$44+(E45*$D$45))) -> 4.66625 | F46: =SUM((F31*$D$31)+(F32*$D$32)+(F33*$D$33)+(F34*$D$34)+(F35*$D$35)+(F36*$D$36)+(F37*$D$37)+(F38*$D$38)+(F39*$D$39)+(F40*$D$40)+(F41*$D$41)+(F42*$D$42)+(F43*$D$43)+(F44*$D$44+(F45*$D$45))) -> 3.515 | G46: 3.239589002 | H46: 3.757298753 | I46: 3.98625 | J46: 3.851607143 | K46: 3.085 | L46: 3.936870748
